[Event "*** MasterClass Titled Tuesday Blitz"]
[Site "Chess.com"]
[Date "2017.10.03"]
[Round "7"]
[White "AdrianaNikolova"]
[Black "JosephRyan"]
[Result "0-1"]
[WhiteElo "2385"]
[BlackElo "2227"]
[TimeControl "180+2"]
[EndTime "14:36:38 PDT"]
[Termination "JosephRyan won by resignation"]

1. e4 {[%clk 0:03:01.9]} 1... c6 {[%clk 0:02:39.8]} 2. d4 {[%clk 0:02:55]} 2...
d5 {[%clk 0:02:39.7]} 3. Nc3 {[%clk 0:02:55.4]} 3... dxe4 {[%clk 0:02:40.1]} 4.
Nxe4 {[%clk 0:02:57.3]} 4... Nf6 {[%clk 0:02:41.3]} 5. Nxf6+ {[%clk 0:02:57.2]}
5... gxf6 {[%clk 0:02:43.2]} 6. c3 {[%clk 0:02:58.4]} 6... Bf5 {[%clk 0:02:44]}
7. Bd3 {[%clk 0:02:57.5]} 7... Bg6 {[%clk 0:02:40.3]} 8. Ne2 {[%clk 0:02:57.8]}
8... Nd7 {[%clk 0:02:39.4]} 9. Bf4 {[%clk 0:02:54.4]} 9... e6 {[%clk 0:02:37.1]}
10. Qd2 {[%clk 0:02:54.8]} 10... Nb6 {[%clk 0:02:36.6]} 11. h4 {[%clk
0:02:55.7]} 11... Nd5 {[%clk 0:02:33.9]} 12. h5 {[%clk 0:02:51]} 12... Bxd3
{[%clk 0:02:32.7]} 13. Qxd3 {[%clk 0:02:52.9]} 13... Nxf4 {[%clk 0:02:28.1]} 14.
Nxf4 {[%clk 0:02:54.8]} 14... Bh6 {[%clk 0:02:25.6]} 15. Qe4 {[%clk 0:02:52.3]}
15... Qd6 {[%clk 0:02:21.9]} 16. Nd3 {[%clk 0:02:52.9]} 16... O-O-O {[%clk
0:02:19.6]} 17. g4 {[%clk 0:02:39.2]} 17... Qd5 {[%clk 0:02:09]} 18. Qxd5 {[%clk
0:02:38]} 18... exd5 {[%clk 0:01:59.7]} 19. Ke2 {[%clk 0:02:39.9]} 19... Rde8+
{[%clk 0:02:00.1]} 20. Kf3 {[%clk 0:02:41]} 20... Re4 {[%clk 0:01:59.5]} 21.
Rae1 {[%clk 0:02:39.4]} 21... Rhe8 {[%clk 0:01:59.1]} 22. Rd1 {[%clk 0:02:20.9]}
22... b6 {[%clk 0:01:57.8]} 23. b3 {[%clk 0:02:20]} 23... Kd7 {[%clk 0:01:53.5]}
24. Rhe1 {[%clk 0:02:15.1]} 24... Kd6 {[%clk 0:01:52.3]} 25. Kg3 {[%clk
0:02:13.4]} 25... Re2 {[%clk 0:01:35.9]} 26. Rxe2 {[%clk 0:02:01.1]} 26... Rxe2
{[%clk 0:01:35.7]} 27. a4 {[%clk 0:02:00.7]} 27... Rc2 {[%clk 0:01:29.5]} 28. f4
{[%clk 0:01:49.5]} 28... Rxc3 {[%clk 0:01:29.4]} 29. Kh4 {[%clk 0:01:43.2]}
29... Rxb3 {[%clk 0:01:29]} 30. g5 {[%clk 0:01:44]} 30... fxg5+ {[%clk
0:01:27.4]} 31. fxg5 {[%clk 0:01:45.9]} 31... Bg7 {[%clk 0:01:28.2]} 32. Nf4
{[%clk 0:01:36.8]} 32... Rb4 {[%clk 0:01:23.7]} 33. Ne2 {[%clk 0:01:32.8]} 33...
c5 {[%clk 0:01:22.7]} 34. Rf1 {[%clk 0:01:30.7]} 34... cxd4 {[%clk 0:01:15.4]}
35. Kh3 {[%clk 0:01:30.6]} 35... d3 {[%clk 0:01:16]} 36. Nc1 {[%clk 0:01:28.5]}
36... d2 {[%clk 0:01:14.9]} 37. Nd3 {[%clk 0:01:29.3]} 37... Rd4 {[%clk
0:01:14]} 38. Nb2 {[%clk 0:01:21.1]} 38... Re4 {[%clk 0:01:07.4]} 39. Nd1 {[%clk
0:01:12.8]} 39... Re1 {[%clk 0:01:07.8]} 40. Kg2 {[%clk 0:01:14.3]} 40... Bd4
{[%clk 0:00:59]} 41. Rh1 {[%clk 0:00:55.7]} 41... Rxh1 {[%clk 0:00:56.8]} 42.
Kxh1 {[%clk 0:00:57.6]} 42... Ke5 {[%clk 0:00:56.7]} 43. Kg2 {[%clk 0:00:47.6]}
43... Kf5 {[%clk 0:00:57.7]} 44. g6 {[%clk 0:00:48.2]} 44... fxg6 {[%clk
0:00:58.2]} 45. hxg6 {[%clk 0:00:50.1]} 45... Kxg6 {[%clk 0:00:57.6]} 46. Kf3
{[%clk 0:00:52]} 46... Kf5 {[%clk 0:00:57.8]} 47. Ke2 {[%clk 0:00:53.3]} 47...
h5 {[%clk 0:00:58.5]} 48. Kxd2 {[%clk 0:00:54]} 48... Ke4 {[%clk 0:00:57.7]} 49.
Ke2 {[%clk 0:00:55]} 49... a6 {[%clk 0:00:57.3]} 50. Kf1 {[%clk 0:00:52.4]}
50... b5 {[%clk 0:00:57.4]} 51. axb5 {[%clk 0:00:54.3]} 51... axb5 {[%clk
0:00:58.7]} 52. Kg2 {[%clk 0:00:55.8]} 52... b4 {[%clk 0:00:59.5]} 53. Kh3
{[%clk 0:00:57.1]} 53... b3 {[%clk 0:01:00.5]} 54. Kh4 {[%clk 0:00:58.5]} 54...
b2 {[%clk 0:01:01.2]} 55. Nxb2 {[%clk 0:00:58.4]} 55... Bxb2 {[%clk 0:01:01.7]}
56. Kxh5 {[%clk 0:01:00.3]} 0-1

[Event "*** MasterClass Titled Tuesday Blitz"]
[Site "Chess.com"]
[Date "2017.10.03"]
[Round "7"]
[White "Noukii"]
[Black "chito89"]
[Result "1-0"]
[WhiteElo "2694"]
[BlackElo "2569"]
[TimeControl "180+2"]
[EndTime "14:36:42 PDT"]
[Termination "Noukii won by resignation"]

1. d4 {[%clk 0:03:01.9]} 1... Nf6 {[%clk 0:03:00]} 2. c4 {[%clk 0:03:02.4]} 2...
e6 {[%clk 0:03:01.6]} 3. Nf3 {[%clk 0:03:03]} 3... Bb4+ {[%clk 0:03:02.6]} 4.
Bd2 {[%clk 0:03:04.3]} 4... a5 {[%clk 0:03:03.6]} 5. Nc3 {[%clk 0:03:02.9]} 5...
b6 {[%clk 0:03:04.2]} 6. e3 {[%clk 0:03:04.3]} 6... Bb7 {[%clk 0:03:05.2]} 7.
Bd3 {[%clk 0:03:05.8]} 7... O-O {[%clk 0:03:06.2]} 8. O-O {[%clk 0:03:06.7]}
8... Bxc3 {[%clk 0:03:02]} 9. Bxc3 {[%clk 0:03:07.5]} 9... Ne4 {[%clk
0:03:03.6]} 10. Be1 {[%clk 0:03:08.5]} 10... d6 {[%clk 0:03:04.8]} 11. Nd2
{[%clk 0:03:05.9]} 11... Nxd2 {[%clk 0:03:04.2]} 12. Qxd2 {[%clk 0:03:05.8]}
12... Nd7 {[%clk 0:03:02.3]} 13. f3 {[%clk 0:03:06.6]} 13... e5 {[%clk
0:03:00.3]} 14. Bf2 {[%clk 0:03:00]} 14... Qe7 {[%clk 0:02:59.7]} 15. e4 {[%clk
0:02:59.6]} 15... Rae8 {[%clk 0:02:56.8]} 16. b3 {[%clk 0:02:59.2]} 16... Qf6
{[%clk 0:02:54.3]} 17. Bc2 {[%clk 0:02:59.6]} 17... Qg6 {[%clk 0:02:55]} 18. a3
{[%clk 0:02:58.1]} 18... Nf6 {[%clk 0:02:51.6]} 19. b4 {[%clk 0:02:55]} 19...
Ra8 {[%clk 0:02:53.2]} 20. c5 {[%clk 0:02:52.4]} 20... axb4 {[%clk 0:02:52.3]}
21. axb4 {[%clk 0:02:53.2]} 21... bxc5 {[%clk 0:02:53.3]} 22. dxe5 {[%clk
0:02:51.6]} 22... dxe5 {[%clk 0:02:51.2]} 23. Bxc5 {[%clk 0:02:51]} 23... Rfd8
{[%clk 0:02:47.8]} 24. Qc3 {[%clk 0:02:48.5]} 24... Nd7 {[%clk 0:02:35.5]} 25.
Be3 {[%clk 0:02:37.9]} 25... Qc6 {[%clk 0:02:36.9]} 26. Qb2 {[%clk 0:02:14.8]}
26... Rxa1 {[%clk 0:02:17.9]} 27. Rxa1 {[%clk 0:02:14.2]} 27... Ra8 {[%clk
0:02:19.4]} 28. Ra5 {[%clk 0:01:50.3]} 28... Rxa5 {[%clk 0:02:06]} 29. bxa5
{[%clk 0:01:52.2]} 29... Ba6 {[%clk 0:02:07.4]} 30. Bb3 {[%clk 0:01:36.3]} 30...
Qb5 {[%clk 0:02:05.3]} 31. h3 {[%clk 0:01:37.2]} 31... Qxa5 {[%clk 0:01:59.8]}
32. Kh2 {[%clk 0:01:38.5]} 32... h6 {[%clk 0:01:48.8]} 33. Qc2 {[%clk
0:01:38.6]} 33... Bb5 {[%clk 0:01:45.1]} 34. Ba2 {[%clk 0:01:32.4]} 34... Qa3
{[%clk 0:01:25.6]} 35. Bc1 {[%clk 0:01:20.8]} 35... Qe7 {[%clk 0:01:25.6]} 36.
Qxc7 {[%clk 0:01:19.5]} 36... Qc5 {[%clk 0:01:19.6]} 37. Qd8+ {[%clk 0:01:09.8]}
37... Qf8 {[%clk 0:01:17.1]} 38. Qa5 {[%clk 0:01:05.3]} 38... Qb8 {[%clk
0:01:12.2]} 39. Ba3 {[%clk 0:01:02.9]} 39... Nf6 {[%clk 0:01:08.9]} 40. Qb4
{[%clk 0:00:58.7]} 40... Qb7 {[%clk 0:01:09.9]} 41. Qd6 {[%clk 0:00:57.9]} 41...
Nd7 {[%clk 0:01:04.4]} 42. Qe7 {[%clk 0:00:55.1]} 42... Qa6 {[%clk 0:00:55.5]}
43. Bxf7+ {[%clk 0:00:54]} 43... Kh7 {[%clk 0:00:57.1]} 44. Bd6 {[%clk 0:00:52]}
44... Qa1 {[%clk 0:00:23.8]} 45. Qe8 {[%clk 0:00:40.5]} 1-0

[Event "*** MasterClass Titled Tuesday Blitz"]
[Site "Chess.com"]
[Date "2017.10.03"]
[Round "7"]
[White "Rbrrt"]
[Black "Sven_Tica"]
[Result "0-1"]
[WhiteElo "2280"]
[BlackElo "2444"]
[TimeControl "180+2"]
[EndTime "14:36:53 PDT"]
[Termination "Sven_Tica won by resignation"]

1. e4 {[%clk 0:03:01.9]} 1... e6 {[%clk 0:02:49.4]} 2. d4 {[%clk 0:03:02.6]}
2... d5 {[%clk 0:02:51]} 3. Nc3 {[%clk 0:03:04.2]} 3... Bb4 {[%clk 0:02:52]} 4.
e5 {[%clk 0:03:05.5]} 4... c5 {[%clk 0:02:53.3]} 5. a3 {[%clk 0:03:07.2]} 5...
Bxc3+ {[%clk 0:02:54.9]} 6. bxc3 {[%clk 0:03:09.1]} 6... Ne7 {[%clk 0:02:56.7]}
7. Qg4 {[%clk 0:03:09.8]} 7... Qc7 {[%clk 0:02:57.5]} 8. Qxg7 {[%clk 0:03:10.9]}
8... Rg8 {[%clk 0:02:57.3]} 9. Qxh7 {[%clk 0:03:12.6]} 9... cxd4 {[%clk
0:02:58.2]} 10. Ne2 {[%clk 0:03:14.3]} 10... Nbc6 {[%clk 0:02:59.8]} 11. f4
{[%clk 0:03:15.9]} 11... dxc3 {[%clk 0:03:01]} 12. h4 {[%clk 0:03:16.5]} 12...
d4 {[%clk 0:02:49.2]} 13. h5 {[%clk 0:03:14.1]} 13... Bd7 {[%clk 0:02:50.6]} 14.
Qd3 {[%clk 0:03:07.8]} 14... O-O-O {[%clk 0:02:49.3]} 15. Rb1 {[%clk 0:03:09]}
15... Kb8 {[%clk 0:02:36]} 16. Rg1 {[%clk 0:03:05.7]} 16... Nd5 {[%clk
0:02:27.5]} 17. g4 {[%clk 0:02:51.4]} 17... f6 {[%clk 0:02:27.8]} 18. Nxd4
{[%clk 0:01:45]} 18... fxe5 {[%clk 0:02:19.3]} 19. Nb5 {[%clk 0:01:46.1]} 19...
Qa5 {[%clk 0:02:17.8]} 20. Nd6 {[%clk 0:01:36.9]} 20... Bc8 {[%clk 0:02:13.1]}
21. fxe5 {[%clk 0:01:33.7]} 21... Qc5 {[%clk 0:01:52.8]} 22. Qg3 {[%clk
0:01:33.3]} 22... Nd4 {[%clk 0:01:45.3]} 23. Rg2 {[%clk 0:01:32.8]} 23... Rdf8
{[%clk 0:01:40]} 24. Rf2 {[%clk 0:01:24]} 24... Rxf2 {[%clk 0:01:19.2]} 25. Qxf2
{[%clk 0:01:25.9]} 25... Rxg4 {[%clk 0:01:20.2]} 26. h6 {[%clk 0:01:27.4]} 26...
Rh4 {[%clk 0:00:39.9]} 27. h7 {[%clk 0:01:21.4]} 27... Rxh7 {[%clk 0:00:36.4]}
28. Rb5 {[%clk 0:01:20]} 28... Nxc2+ {[%clk 0:00:21.7]} 29. Qxc2 {[%clk
0:01:19.5]} 29... Qd4 {[%clk 0:00:22.8]} 30. Qxh7 {[%clk 0:01:15]} 30... Qxe5+
{[%clk 0:00:22]} 31. Ne4 {[%clk 0:00:56.9]} 31... a6 {[%clk 0:00:21.1]} 32. Rb4
{[%clk 0:00:36.9]} 32... a5 {[%clk 0:00:20.2]} 33. Rb5 {[%clk 0:00:36.9]} 33...
Bd7 {[%clk 0:00:21.2]} 34. Qxd7 {[%clk 0:00:31.4]} 34... Qxe4+ {[%clk
0:00:22.6]} 35. Kf2 {[%clk 0:00:31.6]} 35... Qd4+ {[%clk 0:00:22.4]} 36. Kg2
{[%clk 0:00:30.4]} 36... Ne3+ {[%clk 0:00:22.3]} 37. Bxe3 {[%clk 0:00:29.9]}
37... Qxd7 {[%clk 0:00:24.2]} 38. Be2 {[%clk 0:00:27.6]} 38... Qc6+ {[%clk
0:00:21.6]} 39. Kf2 {[%clk 0:00:28.4]} 39... c2 {[%clk 0:00:22.4]} 40. Rc5
{[%clk 0:00:23.5]} 40... Qxc5 {[%clk 0:00:22.2]} 41. Bxc5 {[%clk 0:00:24.6]}
41... c1=Q {[%clk 0:00:23.3]} 42. Bd6+ {[%clk 0:00:26]} 42... Kc8 {[%clk
0:00:24.4]} 0-1

[Event "*** MasterClass Titled Tuesday Blitz"]
[Site "Chess.com"]
[Date "2017.10.03"]
[Round "7"]
[White "Gordima"]
[Black "Superfelix"]
[Result "1-0"]
[WhiteElo "2587"]
[BlackElo "2317"]
[TimeControl "180+2"]
[EndTime "14:37:01 PDT"]
[Termination "Gordima won by resignation"]

1. Nf3 {[%clk 0:03:01.2]} 1... Nf6 {[%clk 0:02:59.6]} 2. g3 {[%clk 0:03:03.1]}
2... g6 {[%clk 0:03:00.7]} 3. b3 {[%clk 0:03:04.4]} 3... Bg7 {[%clk 0:03:01.9]}
4. Bb2 {[%clk 0:03:06.3]} 4... O-O {[%clk 0:03:03.6]} 5. Bg2 {[%clk 0:03:07.7]}
5... b6 {[%clk 0:03:04.7]} 6. O-O {[%clk 0:03:08.4]} 6... Bb7 {[%clk 0:03:05.8]}
7. c4 {[%clk 0:03:09.7]} 7... c5 {[%clk 0:03:06]} 8. Nc3 {[%clk 0:03:08.9]} 8...
d6 {[%clk 0:03:04.7]} 9. Rc1 {[%clk 0:03:05.7]} 9... Nbd7 {[%clk 0:03:03.7]} 10.
d4 {[%clk 0:03:06.7]} 10... cxd4 {[%clk 0:03:03.8]} 11. Qxd4 {[%clk 0:03:08]}
11... a6 {[%clk 0:02:58.1]} 12. Rfd1 {[%clk 0:02:48.6]} 12... Rc8 {[%clk
0:02:55.2]} 13. Qd2 {[%clk 0:02:44.2]} 13... Rc7 {[%clk 0:02:45]} 14. Nd5 {[%clk
0:02:36.6]} 14... Nxd5 {[%clk 0:02:10.8]} 15. Bxg7 {[%clk 0:02:36.8]} 15... Kxg7
{[%clk 0:02:11.9]} 16. cxd5 {[%clk 0:02:38.1]} 16... Rxc1 {[%clk 0:02:03.3]} 17.
Rxc1 {[%clk 0:02:40]} 17... Qa8 {[%clk 0:02:04.1]} 18. Nd4 {[%clk 0:02:34.7]}
18... Nf6 {[%clk 0:01:59.8]} 19. Nc6 {[%clk 0:02:30.4]} 19... Rc8 {[%clk
0:01:44.5]} 20. Nxe7 {[%clk 0:02:22.6]} 20... Rxc1+ {[%clk 0:01:43.8]} 21. Qxc1
{[%clk 0:02:24.2]} 21... Nxd5 {[%clk 0:01:36.7]} 22. Bxd5 {[%clk 0:02:14.5]}
22... Bxd5 {[%clk 0:01:38.6]} 23. Qc3+ {[%clk 0:02:16.1]} 23... f6 {[%clk
0:01:31.4]} 24. Qc7 {[%clk 0:02:12]} 24... Bf7 {[%clk 0:01:03.7]} 25. Nc8 {[%clk
0:02:04.7]} 25... Kg8 {[%clk 0:00:36.6]} 26. Nxd6 {[%clk 0:01:48.2]} 26... Be6
{[%clk 0:00:37]} 27. Qxb6 {[%clk 0:01:41.9]} 27... Qd5 {[%clk 0:00:34.6]} 28.
Qd8+ {[%clk 0:01:42.8]} 28... Kg7 {[%clk 0:00:34]} 29. Ne8+ {[%clk 0:01:44.3]}
29... Kf7 {[%clk 0:00:35]} 30. Qxd5 {[%clk 0:01:41.8]} 30... Bxd5 {[%clk
0:00:36.9]} 31. Nd6+ {[%clk 0:01:43.4]} 31... Ke6 {[%clk 0:00:36.5]} 32. Nc4
{[%clk 0:01:26.7]} 32... Bxc4 {[%clk 0:00:31.7]} 33. bxc4 {[%clk 0:01:28.6]}
33... Kd6 {[%clk 0:00:33.1]} 34. Kf1 {[%clk 0:01:28.4]} 34... Kc5 {[%clk
0:00:34.4]} 35. Ke1 {[%clk 0:01:29.9]} 35... Kxc4 {[%clk 0:00:35.9]} 36. Kd2
{[%clk 0:01:31.6]} 36... a5 {[%clk 0:00:33]} 37. Kc2 {[%clk 0:01:31.3]} 37... a4
{[%clk 0:00:31.1]} 38. e3 {[%clk 0:01:22]} 38... f5 {[%clk 0:00:31.5]} 39. f3
{[%clk 0:01:18.4]} 39... h6 {[%clk 0:00:17.2]} 40. h3 {[%clk 0:01:14.2]} 40...
h5 {[%clk 0:00:18]} 41. h4 {[%clk 0:01:12.4]} 41... Kb4 {[%clk 0:00:15.8]} 42.
Kd3 {[%clk 0:00:55.4]} 42... Ka3 {[%clk 0:00:14.8]} 43. e4 {[%clk 0:00:56.7]}
43... fxe4+ {[%clk 0:00:15.3]} 44. fxe4 {[%clk 0:00:57.7]} 44... Kxa2 {[%clk
0:00:15.2]} 45. Kc2 {[%clk 0:00:59]} 45... Ka3 {[%clk 0:00:16.6]} 46. e5 {[%clk
0:01:00.5]} 46... Kb4 {[%clk 0:00:16]} 47. e6 {[%clk 0:01:01.9]} 47... a3 {[%clk
0:00:17.5]} 48. e7 {[%clk 0:01:03.1]} 48... a2 {[%clk 0:00:19.4]} 49. Kb2 {[%clk
0:01:04.6]} 49... a1=Q+ {[%clk 0:00:20.2]} 50. Kxa1 {[%clk 0:01:05.8]} 1-0

[Event "*** MasterClass Titled Tuesday Blitz"]
[Site "Chess.com"]
[Date "2017.10.03"]
[Round "7"]
[White "Buffy7"]
[Black "SerGo055"]
[Result "1-0"]
[WhiteElo "2465"]
[BlackElo "2402"]
[TimeControl "180+2"]
[EndTime "14:37:12 PDT"]
[Termination "Buffy7 won by resignation"]

1. d4 {[%clk 0:02:46.7]} 1... d5 {[%clk 0:02:59.6]} 2. Nf3 {[%clk 0:02:46.4]}
2... Nf6 {[%clk 0:02:59.1]} 3. c4 {[%clk 0:02:46.8]} 3... c6 {[%clk 0:03:00.1]}
4. Nc3 {[%clk 0:02:47]} 4... e6 {[%clk 0:02:58.9]} 5. e3 {[%clk 0:02:46.9]} 5...
Nbd7 {[%clk 0:02:58.7]} 6. Qc2 {[%clk 0:02:47]} 6... a6 {[%clk 0:02:58.8]} 7. c5
{[%clk 0:02:47]} 7... e5 {[%clk 0:02:45.3]} 8. Be2 {[%clk 0:02:25.3]} 8... exd4
{[%clk 0:02:39.7]} 9. exd4 {[%clk 0:02:25.3]} 9... Be7 {[%clk 0:02:41.2]} 10.
Bf4 {[%clk 0:02:22.1]} 10... O-O {[%clk 0:02:43.1]} 11. O-O {[%clk 0:02:18.4]}
11... Re8 {[%clk 0:02:44.5]} 12. h3 {[%clk 0:02:02.5]} 12... Nf8 {[%clk
0:02:45.5]} 13. Ne5 {[%clk 0:02:03.5]} 13... Ng6 {[%clk 0:02:45.6]} 14. Nxg6
{[%clk 0:01:59.8]} 14... hxg6 {[%clk 0:02:45]} 15. Bd3 {[%clk 0:02:01.2]} 15...
Nh5 {[%clk 0:02:28.2]} 16. Bh2 {[%clk 0:01:55.3]} 16... Bf6 {[%clk 0:02:28.9]}
17. Ne2 {[%clk 0:01:55.9]} 17... Rxe2 {[%clk 0:02:15.2]} 18. Qxe2 {[%clk
0:01:52.3]} 18... Bxd4 {[%clk 0:02:17.1]} 19. Bd6 {[%clk 0:01:53.1]} 19... Be6
{[%clk 0:02:06.1]} 20. Bxg6 {[%clk 0:01:44.7]} 20... fxg6 {[%clk 0:01:59.1]} 21.
Qxe6+ {[%clk 0:01:44.3]} 21... Kh7 {[%clk 0:02:01]} 22. Rad1 {[%clk 0:01:39]}
22... Bxb2 {[%clk 0:01:53.6]} 23. Rb1 {[%clk 0:01:39.3]} 23... Bd4 {[%clk
0:01:51.8]} 24. Rxb7 {[%clk 0:01:38]} 24... Qg5 {[%clk 0:01:49.4]} 25. Kh2
{[%clk 0:01:24.7]} 25... Nf4 {[%clk 0:01:47.8]} 26. Qg4 {[%clk 0:01:24.8]} 26...
Qxg4 {[%clk 0:01:43.2]} 27. hxg4 {[%clk 0:01:26.7]} 27... Nd3 {[%clk 0:01:43.8]}
28. f3 {[%clk 0:01:24.1]} 28... Nxc5 {[%clk 0:01:34.8]} 29. Bxc5 {[%clk
0:01:21.3]} 29... Bxc5 {[%clk 0:01:33.2]} 30. Rc1 {[%clk 0:01:22.2]} 30... Bd6+
{[%clk 0:01:33.3]} 31. Kg1 {[%clk 0:01:21.6]} 31... Rc8 {[%clk 0:01:26.3]} 32.
Kf2 {[%clk 0:01:15.2]} 32... Bf4 {[%clk 0:01:23.7]} 33. Rc5 {[%clk 0:01:12.3]}
33... Be5 {[%clk 0:01:23.7]} 34. Ke3 {[%clk 0:01:09.2]} 34... Bd6 {[%clk
0:01:21.2]} 35. Rc2 {[%clk 0:01:08]} 35... Re8+ {[%clk 0:01:19.2]} 36. Kd3
{[%clk 0:01:04.3]} 36... c5 {[%clk 0:01:20.3]} 37. Rd7 {[%clk 0:01:02.3]} 37...
Re6 {[%clk 0:01:20.3]} 38. Re2 {[%clk 0:01:00.4]} 38... c4+ {[%clk 0:01:17.5]}
39. Kd2 {[%clk 0:01:01.5]} 39... Bf4+ {[%clk 0:01:06]} 40. Kd1 {[%clk
0:01:02.1]} 40... Rb6 {[%clk 0:01:06.6]} 41. Rxd5 {[%clk 0:00:58]} 41... c3
{[%clk 0:01:07.2]} 42. Rc5 {[%clk 0:00:52.4]} 42... Rb1+ {[%clk 0:00:58.3]} 43.
Kc2 {[%clk 0:00:53.4]} 43... Rb2+ {[%clk 0:00:59.3]} 44. Kd3 {[%clk 0:00:54.6]}
44... Bd2 {[%clk 0:01:00.5]} 45. a4 {[%clk 0:00:50.2]} 45... Ra2 {[%clk
0:00:55.8]} 46. a5 {[%clk 0:00:49.9]} 46... Kh6 {[%clk 0:00:43.8]} 47. g5+
{[%clk 0:00:48.3]} 47... Kh5 {[%clk 0:00:42]} 48. g3 {[%clk 0:00:47.9]} 48...
Be3 {[%clk 0:00:24.7]} 49. Rxc3 {[%clk 0:00:38.3]} 49... Rxe2 {[%clk 0:00:22.1]}
50. Kxe2 {[%clk 0:00:40.2]} 50... Bxg5 {[%clk 0:00:23.1]} 51. Rc6 {[%clk
0:00:38]} 51... Bd8 {[%clk 0:00:23.1]} 52. Rxa6 {[%clk 0:00:38.4]} 1-0

[Event "*** MasterClass Titled Tuesday Blitz"]
[Site "Chess.com"]
[Date "2017.10.03"]
[Round "7"]
[White "Rodalquilar"]
[Black "Alexander_Donchenko"]
[Result "1-0"]
[WhiteElo "2510"]
[BlackElo "2566"]
[TimeControl "180+2"]
[EndTime "14:37:17 PDT"]
[Termination "Rodalquilar won by resignation"]

1. e4 {[%clk 0:02:41]} 1... c6 {[%clk 0:03:00.3]} 2. d4 {[%clk 0:02:41.8]} 2...
d5 {[%clk 0:03:01.7]} 3. Nc3 {[%clk 0:02:43.5]} 3... dxe4 {[%clk 0:03:03]} 4.
Nxe4 {[%clk 0:02:45.4]} 4... Bf5 {[%clk 0:03:04.5]} 5. Ng3 {[%clk 0:02:46.8]}
5... Bg6 {[%clk 0:03:06.1]} 6. h4 {[%clk 0:02:48.5]} 6... h6 {[%clk 0:03:07.6]}
7. Nf3 {[%clk 0:02:50.2]} 7... Nd7 {[%clk 0:03:09.1]} 8. h5 {[%clk 0:02:51.4]}
8... Bh7 {[%clk 0:03:10.8]} 9. Bd3 {[%clk 0:02:53.2]} 9... Bxd3 {[%clk
0:03:12.4]} 10. Qxd3 {[%clk 0:02:55.1]} 10... e6 {[%clk 0:03:14.1]} 11. Bd2
{[%clk 0:02:56.7]} 11... Ngf6 {[%clk 0:03:15.7]} 12. O-O-O {[%clk 0:02:57.9]}
12... Be7 {[%clk 0:03:17.3]} 13. Qe2 {[%clk 0:02:59]} 13... O-O {[%clk
0:03:17.7]} 14. Nf1 {[%clk 0:03:00.3]} 14... c5 {[%clk 0:03:17.3]} 15. g4 {[%clk
0:02:57.4]} 15... Nd5 {[%clk 0:03:09]} 16. g5 {[%clk 0:02:39]} 16... hxg5 {[%clk
0:03:06.3]} 17. Rg1 {[%clk 0:02:40.2]} 17... Nf4 {[%clk 0:02:56.2]} 18. Bxf4
{[%clk 0:01:52.1]} 18... gxf4 {[%clk 0:02:58.1]} 19. dxc5 {[%clk 0:01:53.8]}
19... Bf6 {[%clk 0:02:52.4]} 20. N1d2 {[%clk 0:01:21.3]} 20... Nxc5 {[%clk
0:01:59]} 21. Ne4 {[%clk 0:01:20.9]} 21... Qe7 {[%clk 0:02:00.2]} 22. Nxf6+
{[%clk 0:01:20.9]} 22... Qxf6 {[%clk 0:02:00.5]} 23. Rg5 {[%clk 0:01:20.3]}
23... Na4 {[%clk 0:01:42.1]} 24. Qb5 {[%clk 0:01:14.9]} 24... Nb6 {[%clk
0:01:37.6]} 25. Rdg1 {[%clk 0:01:13.2]} 25... Nd5 {[%clk 0:01:31.8]} 26. Rxg7+
{[%clk 0:00:57.1]} 26... Kh8 {[%clk 0:01:21.3]} 27. Qd3 {[%clk 0:00:56.5]} 27...
Qxg7 {[%clk 0:01:21.4]} 28. Rxg7 {[%clk 0:00:57.1]} 28... Kxg7 {[%clk
0:01:23.3]} 29. Qd4+ {[%clk 0:00:55]} 29... f6 {[%clk 0:01:05.3]} 30. Qe4 {[%clk
0:00:53.2]} 30... Kf7 {[%clk 0:01:02]} 31. Qh7+ {[%clk 0:00:40.2]} 31... Ke8
{[%clk 0:01:03]} 32. Qxb7 {[%clk 0:00:41.4]} 32... Rd8 {[%clk 0:01:02.2]} 33.
Nd4 {[%clk 0:00:38.7]} 33... Rg8 {[%clk 0:00:37.2]} 34. Qc6+ {[%clk 0:00:25.3]}
34... Rd7 {[%clk 0:00:36.8]} 35. Qc8+ {[%clk 0:00:24.8]} 35... Rd8 {[%clk
0:00:34.6]} 36. Qxe6+ {[%clk 0:00:25.5]} 36... Kf8 {[%clk 0:00:36.3]} 37. c4
{[%clk 0:00:16]} 37... Rg1+ {[%clk 0:00:33.2]} 38. Kd2 {[%clk 0:00:14.4]} 38...
Nb4 {[%clk 0:00:14.2]} 39. Qxf6+ {[%clk 0:00:15]} 39... Ke8 {[%clk 0:00:15.7]}
40. a3 {[%clk 0:00:10.7]} 40... Na2 {[%clk 0:00:11.5]} 41. h6 {[%clk 0:00:09.6]}
41... Nc1 {[%clk 0:00:12.4]} 42. h7 {[%clk 0:00:06.3]} 42... Nb3+ {[%clk
0:00:13.7]} 43. Kc3 {[%clk 0:00:07.2]} 1-0